bitfinex/quotes_ETHUSD_20250807
["timestamp","ask_amount","ask_price","bid_price","bid_amount"]
[1754562875860,2.87075525,3808.1,3808.0,1.5]
[1754562876360,3.35112134,3808.1,3807.8,0.001]
[1754562876564,3.17611938,3807.9,3807.8,0.001]
[1754562876777,2.62695288,3806.7,3806.5,4.626]
[1754562876938,2.62701623,3806.6,3806.5,4.626]
[1754562877127,2.62708524,3806.5,3806.4,0.001]
[1754562877765,2.88979376,3806.5,3806.4,0.001]
[1754562877932,3.32359376,3806.5,3806.4,0.001]
[1754562878546,3.45479376,3806.5,3806.4,0.001]
[1754562878742,4.77279376,3806.5,3806.4,0.001]
[1754562879131,0.39390852,3806.5,3806.4,0.001]
[1754562879631,0.1312,3806.5,3806.4,0.001]
[1754562880033,2.62620726,3807.8,3806.5,2.62708524]
[1754562880228,0.1312,3807.2,3806.7,2.75814164]
[1754562880467,0.24411613,3807.6,3807.5,2.62639527]
[1754562880665,0.24396161,3807.6,3807.5,3.97869527]
[1754562880869,0.24396161,3807.9,3807.8,2.62618835]
[1754562881072,2.62561846,3808.7,3807.9,2.62611938]
[1754562881371,0.1312,3808.2,3807.9,2.62607276]
[1754562881558,0.24393158,3808.1,3808.0,3.97835042]
[1754562881737,0.24393158,3808.1,3808.0,1.3523]
[1754562882373,0.1312,3808.2,3807.8,4.627]
[1754562882771,0.1312,3808.2,3807.9,1.7865]
[1754562882957,0.24381104,3808.7,3807.9,5.9783]
[1754562883162,2.86945782,3808.6,3807.9,8.6044116]
[1754562883362,2.62591218,3808.3,3807.5,4.626]
[1754562883566,0.54949689,3808.6,3807.5,4.626]
[1754562883875,2.62583764,3808.4,3807.6,2.62632629]
[1754562884171,1.7518,3808.6,3807.5,4.626]
[1754562884376,0.1312,3807.9,3807.6,2.62627864]
[1754562885147,2.6254789,3808.9,3808.1,2.62594249]
[1754562885471,0.1312,3808.7,3808.3,2.62579052]
[1754562886065,2.62537149,3809.0,3802.0,5.93521268]
[1754562886066,1.7518,3808.6,3806.7,0.001]
[1754562886255,1.7518,3808.6,3807.3,3.97877988]
[1754562886256,0.63778,3808.5,3807.3,3.97877988]
[1754562886578,2.6257746,3808.4,3807.3,8.60377988]
[1754562886873,0.63778,3808.5,3807.4,2.62646425]
[1754562887080,0.63778,3808.5,3807.4,1.7865]
[1754562887256,2.62597423,3808.2,3807.4,4.41295464]
[1754562887450,2.62597423,3808.2,3807.5,2.6263803]
[1754562887754,2.62597423,3808.2,3807.8,0.001]
[1754562887966,2.62591275,3808.2,3807.8,1.3533]
[1754562888342,2.62599923,3808.1,3807.8,0.001]
[1754562888543,2.62606069,3808.0,3807.8,0.001]
[1754562888754,2.62611938,3807.9,3807.8,0.001]
[1754562890441,2.62606713,3808.0,3807.8,0.001]
[1754562890641,2.62611938,3807.9,3807.8,0.001]
[1754562890970,3.19471275,3807.9,3807.8,0.001]
[1754562891167,4.96721275,3807.9,3807.8,0.001]
[1754562891666,4.96721275,3807.9,3807.8,1e-08]
[1754562891667,17.79776702,3807.9,3807.8,1e-08]
[1754562891879,3.17639527,3807.5,3807.4,1e-08]
[1754562892054,3.17639527,3807.5,3807.0,0.001]
[1754562892055,2.62667121,3807.1,3807.0,0.001]
[1754562892480,4.39917121,3807.1,3807.0,0.001]
[1754562892651,8.25617121,3807.1,3807.0,0.001]
[1754562892852,9.57417121,3807.1,3807.0,0.001]
[1754562893048,7.80167121,3807.1,3807.0,0.001]
[1754562893257,8.87626069,3807.1,3807.0,0.001]
[1754562893582,3.70126069,3807.1,3807.0,0.001]
[1754562893746,8.87526069,3807.1,3807.0,0.001]
[1754562895344,3.70126069,3807.1,3807.0,0.001]
[1754562895544,0.31763953,3807.4,3807.0,0.001]
[1754562895749,0.56859337,3807.9,3807.0,0.001]
[1754562895750,2.62667121,3807.1,3807.0,0.001]
[1754562896047,2.75787121,3807.1,3807.0,0.001]
[1754562896253,0.1312,3807.1,3807.0,1.3325]
[1754562896672,0.1312,3807.1,3807.0,1.7725]
[1754562896874,0.1312,3807.1,3807.0,1.3325]
[1754562897184,2.75787121,3807.1,3807.0,0.001]
[1754562897350,0.1312,3807.1,3807.0,0.001]
[1754562897769,2.75787121,3807.1,3807.0,0.001]
[1754562898492,3.29630854,3807.1,3807.0,0.001]
[1754562898659,2.75787121,3807.1,3807.0,0.001]
[1754562898850,0.1312,3807.1,3807.0,0.001]
[1754562899868,2.75787121,3807.1,3807.0,0.001]
[1754562900352,7.38187121,3807.1,3807.0,0.001]
[1754562900587,8.38271252,3807.1,3807.0,0.001]
[1754562901289,8.62809254,3807.1,3807.0,0.001]
[1754562902294,9.08259254,3807.1,3807.0,0.001]
[1754562902464,10.90899254,3807.1,3807.0,0.001]
[1754562902982,25.40899254,3807.1,3807.0,0.001]
[1754562905374,28.40899254,3807.1,3807.0,1e-08]
[1754562908284,3.17708524,3806.5,3806.4,0.001]
[1754562908483,8.04446526,3806.5,3806.4,0.001]
[1754562908708,9.90656526,3806.5,3806.4,0.001]
[1754562908880,24.40656526,3806.5,3806.4,0.001]
[1754562909406,22.67566526,3806.5,3806.4,0.001]
[1754562909624,23.91769684,3806.5,3806.4,0.001]
[1754562909777,24.37219684,3806.5,3806.4,0.001]
[1754562910113,25.64859684,3806.5,3806.4,0.001]
[1754562910305,19.16449684,3806.5,3806.4,0.001]
[1754562910511,23.78549684,3806.5,3806.4,0.001]
[1754562911210,27.23999684,3806.5,3806.4,0.001]
[1754562911417,28.51639684,3806.5,3806.4,0.001]
[1754562911724,28.51639684,3806.5,3806.4,1e-08]
[1754562912227,17.5155567,3806.2,3806.1,1e-08]
[1754562912390,11.6120984,3806.2,3806.1,1e-08]
[1754562912594,13.3429984,3806.2,3806.1,1e-08]
[1754562912796,13.44824644,3806.2,3806.1,1e-08]
[1754562913099,11.61203544,3806.2,3806.1,1e-08]
[1754562913298,13.44819154,3806.2,3806.1,1e-08]
[1754562913822,24.78645593,3806.2,3806.1,1e-08]
[1754562914402,39.28645593,3806.2,3806.1,1e-08]
[1754562914829,23.32719154,3806.2,3806.1,1e-08]
[1754562915004,26.21629154,3806.2,3806.1,1e-08]
[1754562915328,39.28544865,3806.2,3806.1,1e-08]
[1754562915489,25.56097326,3806.2,3806.1,1e-08]
[1754562915689,26.11097326,3806.2,3806.1,1e-08]
[1754562915885,27.84187326,3806.2,3806.1,1e-08]
[1754562916287,2.62763749,3805.7,3805.6,1e-08]
[1754562916624,11.01824436,3805.7,3805.6,1e-08]
[1754562916793,11.47274436,3805.7,3805.6,1e-08]
[1754562916995,12.74914436,3805.7,3805.6,1e-08]
[1754562917336,6.17777558,3805.5,3805.4,1e-08]
[1754562917542,6.17777558,3805.5,3804.9,0.001]
[1754562917543,8.41508758,3805.5,3804.9,0.001]
[1754562917702,6.17805182,3805.1,3804.9,0.001]
[1754562917908,25.5431394,3805.1,3804.9,0.001]
[1754562918109,27.2740394,3805.1,3805.0,1e-08]
[1754562918311,29.00377586,3805.1,3805.0,1e-08]
[1754562918620,27.72737586,3805.1,3805.0,1e-08]
[1754562918819,6.17812089,3805.0,3804.9,1e-08]
[1754562919028,11.04220847,3805.0,3804.9,1e-08]
[1754562919591,0.79508758,3805.0,3804.9,1.33150001]
[1754562919798,0.52551929,3805.7,3804.9,1.77150001]
[1754562919995,2.62783077,3805.5,3805.0,1.7632]
[1754562920320,19.36410623,3805.4,3805.1,1.7632]
[1754562920522,2.87301992,3805.3,3805.2,1.7632]
[1754562920718,0.24510623,3805.3,3805.2,4.39118276]
[1754562921028,0.1312,3805.3,3805.2,4.39118276]
[1754562921226,0.37632549,3805.3,3805.2,4.39118276]
[1754562921426,0.24512549,3805.3,3805.2,4.39118276]
[1754562921626,0.1312,3805.5,3805.2,1.7632]
[1754562921828,0.1312,3805.5,3805.2,2.62793425]
[1754562921829,0.24518466,3805.4,3805.2,2.62793425]
[1754562922028,4.618,3805.4,3805.3,1.7632]
[1754562922240,5.33810422,3805.4,3804.9,1e-08]
[1754562922423,2.62803753,3805.2,3805.0,1.2962]
[1754562922732,0.1312,3805.0,3804.9,1e-08]
[1754562923298,0.1312,3805.0,3804.9,1.76320001]
[1754562923498,4.618,3805.0,3804.9,4.39138997]
[1754562923900,0.1312,3805.1,3805.0,2.62812089]
[1754562924098,4.617,3805.6,3805.0,1.7632]
[1754562924336,0.1312,3805.4,3805.1,4.39123038]
[1754562924533,0.24513985,3805.3,3805.1,2.62803038]
[1754562924838,0.1312,3805.4,3805.2,1.2962]
[1754562925000,0.24518472,3805.3,3805.2,1.7632]
[1754562925336,7.49009841,3805.3,3805.2,1.7632]
[1754562925500,7.49009841,3805.3,3805.2,4.39118276]
[1754562925501,0.24518472,3805.3,3805.2,4.39118276]
[1754562925711,4.616,3805.9,3805.4,2.62777796]
[1754562925902,0.1312,3805.6,3805.5,1.7632]
[1754562926118,0.1312,3805.6,3804.9,1e-08]
[1754562926327,0.1312,3805.3,3804.9,1e-08]
[1754562926531,0.1312,3805.6,3805.1,0.1312]
[1754562926734,0.1312,3805.6,3805.4,2.62778217]
[1754562927042,0.1312,3805.6,3805.5,1.7632]
[1754562928507,2.75890653,3805.6,3805.5,1.7632]
[1754562928706,2.75890653,3805.6,3805.5,1.2962]
[1754562928930,2.75890653,3805.6,3805.1,0.467]
[1754562928931,3.75915508,3805.6,3805.1,0.467]
[1754562929254,2.75923358,3805.2,3804.9,1.29620001]
[1754562929544,4.614,3805.1,3805.0,1.7632]
[1754562929851,4.7452,3805.1,3805.0,1.7632]
[1754562930045,4.7452,3805.1,3805.0,4.39132089]
[1754562930344,4.7452,3805.1,3805.0,1.7632]
[1754562930509,4.7452,3805.1,3805.0,1.2962]
[1754562930911,7.37325182,3805.1,3805.0,1.2962]
[1754562931143,2.62812089,3805.0,3804.9,1e-08]
[1754562931344,4.7452,3805.1,3804.9,1e-08]
[1754562931543,4.7452,3805.1,3805.0,0.001]
[1754562931846,4.7452,3805.1,3805.0,1.7642]
[1754562932145,4.7442,3805.1,3805.0,1.7642]
[1754562933462,0.1312,3805.1,3805.0,1.7642]
[1754562933654,0.002,3806.2,3805.0,1.94072]
[1754562933857,0.002,3806.2,3805.2,0.1312]
[1754562934017,0.1312,3805.9,3805.4,0.1312]
[1754562934218,0.1312,3805.9,3805.5,1.7632]
[1754562934468,4.612,3806.1,3805.6,1.2962]
[1754562934764,0.1312,3805.7,3805.2,1.2962]
[1754562934963,0.1312,3805.4,3805.3,1.2962]
[1754562935181,2.75904464,3805.4,3805.3,1.2962]
[1754562935457,2.75911155,3805.4,3805.0,1.2972]
[1754562935662,2.62805182,3805.1,3805.0,1.2972]
[1754562935865,2.75925182,3805.1,3805.0,1.2972]
[1754562936031,2.75925182,3805.1,3805.0,0.001]
[1754562936237,3.75906837,3805.1,3805.0,0.001]
[1754562936921,0.1312,3805.1,3805.0,1.7642]
[1754562938123,0.1312,3805.1,3805.0,0.001]
[1754562938369,0.1312,3805.1,3805.0,1.7642]
[1754562939532,4.609,3805.1,3805.0,1.7642]
[1754562939930,0.1312,3805.4,3805.0,4.39231836]
[1754562940273,4.7402,3805.4,3805.1,1.7632]
[1754562940431,4.7402,3805.4,3805.0,2.62911491]
[1754562940621,0.1312,3805.4,3805.3,2.62791369]
[1754562940821,4.609,3805.5,3805.3,4.39111369]
[1754562941074,4.7402,3805.5,3805.4,1.7632]
[1754562941979,5.32910067,3805.5,3805.0,0.001]
[1754562942141,0.24610228,3805.4,3805.1,1.2962]
[1754562942471,4.608,3805.4,3805.2,1.2962]
[1754562942770,4.607,3805.5,3805.3,1.7632]
[1754562942969,4.607,3805.7,3805.4,1.7632]
[1754562943173,0.24610645,3805.6,3805.0,1.7642]
[1754562943358,0.24610645,3805.5,3805.0,1.2972]
[1754562943686,2.87404116,3805.4,3805.0,1.2972]
[1754562943844,7.23493558,3805.3,3805.0,1.2972]
[1754562944048,2.62805182,3805.1,3805.0,0.001]
[1754562944668,3.61435056,3805.1,3805.0,0.001]
[1754562945040,0.98629874,3805.1,3805.0,0.001]
[1754562945282,2.62805182,3805.1,3805.0,0.001]
[1754562946417,2.87422941,3805.1,3805.0,0.001]
[1754562946584,4.58622941,3805.1,3805.0,0.001]
[1754562947112,2.87422941,3805.1,3805.0,0.001]
[1754562947267,4.05634392,3805.1,3805.0,0.001]
[1754562947607,5.76834392,3805.1,3805.0,0.001]
[1754562948270,8.76834392,3805.1,3805.0,0.001]
[1754562948471,9.31834392,3805.1,3805.0,0.001]
[1754562948672,9.07216633,3805.1,3805.0,0.001]
[1754562949195,11.41416633,3805.1,3805.0,0.001]
[1754562949415,6.81016633,3805.1,3805.0,0.001]
[1754562949725,1.42818946,3805.1,3805.0,0.001]
[1754562949926,1.42818946,3805.1,3805.0,1.2972]
[1754562949927,4.84907495,3805.1,3805.0,1.2972]
[1754562950231,7.47712677,3805.1,3805.0,1.2972]
[1754562950528,7.47707023,3805.1,3805.0,0.001]
[1754562950890,9.22937023,3805.1,3805.0,0.001]
[1754562951096,10.41509883,3805.1,3805.0,0.001]
[1754562951692,13.71908042,3805.1,3805.0,0.001]
[1754562951907,13.85028042,3805.1,3805.0,0.001]
[1754562953616,2.62860447,3804.3,3804.2,0.001]
[1754562953927,7.22960447,3804.3,3804.2,0.001]
[1754562954128,8.34661704,3804.3,3804.2,0.001]
[1754562954296,10.09891704,3804.3,3804.2,0.001]
[1754562954895,9.99157904,3804.3,3804.2,0.001]
[1754562955598,10.54157904,3804.3,3804.2,0.001]
[1754562955797,8.78927904,3804.3,3804.2,0.001]
[1754562955991,8.23927904,3804.3,3804.2,0.001]
[1754562957101,9.99157904,3804.3,3804.2,0.001]
[1754562957296,8.78927904,3804.3,3804.2,0.001]
[1754562957600,8.23727904,3804.3,3804.2,0.001]
[1754562957809,5.71601257,3804.3,3804.2,0.001]
[1754562958033,8.34461704,3804.3,3804.2,0.001]
[1754562959842,10.64691704,3804.3,3804.2,0.001]
[1754562960005,3.74561704,3804.3,3804.2,1.2237]
[1754562960204,8.34261704,3804.3,3804.2,1.2237]
[1754562960605,8.34261704,3804.3,3804.2,0.001]
[1754562961713,3.74561704,3804.3,3804.2,0.001]
[1754562961912,10.09391704,3804.3,3804.2,0.001]
[1754562962116,10.64391704,3804.3,3804.2,0.001]
[1754562962319,13.64391704,3804.3,3804.2,0.001]
[1754562962906,26.39061704,3804.3,3804.2,0.001]
[1754562964019,25.83961704,3804.3,3804.2,0.001]
[1754562964224,25.83961704,3804.3,3804.2,1.2237]
[1754562964419,11.33961704,3804.3,3804.2,1.2237]
[1754562964933,11.33961704,3804.3,3804.2,0.001]
[1754562965545,11.33961704,3804.3,3804.2,1.2237]
[1754562965844,11.33961704,3804.3,3804.2,0.001]
[1754562966242,11.33861704,3804.3,3804.2,0.001]
[1754562966443,12.32861704,3804.3,3804.2,0.001]
[1754562967243,5.7142,3804.3,3804.2,1.6853]
[1754562967848,8.34180447,3804.3,3804.2,1.2237]
[1754562968326,8.34180447,3804.3,3804.2,0.001]
[1754562968529,9.43883226,3804.3,3804.2,0.001]
[1754562968924,12.43883226,3804.3,3804.2,0.001]
[1754562970329,4.1212,3804.3,3804.2,1.2237]
[1754562970542,5.7112,3804.3,3804.2,1.6853]
[1754562970745,1.1212,3804.3,3804.2,1.6853]
[1754562970957,1.1212,3804.3,3804.2,4.48260357]
[1754562971129,5.579,3804.3,3804.2,4.48260357]
[1754562971316,0.99,3804.3,3804.2,0.16963]
[1754562971640,1.1212,3804.3,3804.2,1.2237]
[1754562971839,3.74980447,3804.3,3804.2,0.001]
[1754562972015,4.32082447,3804.3,3804.2,0.001]
[1754562972214,1.69222,3804.3,3804.2,1.2237]
[1754562972418,3.74980447,3804.3,3804.2,1.6853]
[1754562972638,3.74980447,3804.3,3804.2,0.001]
[1754562973043,3.74980447,3804.3,3804.2,1.6853]
[1754562973440,5.7092,3804.3,3804.2,1.6853]
[1754562973743,8.33780447,3804.3,3804.2,1.2237]
[1754562973919,8.33780447,3804.3,3804.2,1.6853]
[1754562974453,8.33780447,3804.3,3804.2,0.001]
[1754562974641,9.43443475,3804.3,3804.2,1.2237]
[1754562974844,9.43443475,3804.3,3804.2,1.6853]
[1754562975048,5.7092,3804.3,3804.2,1.6853]
[1754562975282,8.33780447,3804.3,3804.2,1.6853]
[1754562975449,8.33780447,3804.3,3804.2,1.2237]
[1754562976148,8.33780447,3804.3,3804.2,1.6853]
[1754562976149,1.1212,3804.3,3804.2,1.6853]
[1754562976829,5.7062,3804.3,3804.2,1.6853]
[1754562977176,6.53966074,3804.3,3804.2,1.6853]
[1754562977330,9.16826521,3804.3,3804.2,1.2237]
[1754562977662,9.16826521,3804.3,3804.2,0.001]
[1754562979127,9.16826521,3804.3,3804.2,1.6853]
[1754562979128,1.95466074,3804.3,3804.2,1.6853]
[1754562979363,5.7042,3804.3,3804.2,1.6853]
[1754562979761,8.33280447,3804.3,3804.2,1.2237]
[1754562979926,8.20160447,3804.3,3804.2,0.001]
[1754562980125,9.42893279,3804.3,3804.2,0.001]
[1754562981763,9.42893279,3804.3,3804.2,1.1727]
[1754562981960,8.33280447,3804.3,3804.2,1.1727]
[1754562982162,8.33280447,3804.3,3804.2,1.6013]
[1754562982456,8.33280447,3804.3,3804.2,0.001]
[1754562984840,3.17881177,3804.0,3803.9,0.001]
[1754562985024,12.82418643,3804.0,3803.9,0.001]
[1754562985225,14.49558643,3804.0,3803.9,0.001]
[1754562985424,29.98558643,3804.0,3803.9,0.001]
[1754562986261,10.13198643,3804.0,3803.9,0.001]
[1754562986872,10.68198643,3804.0,3803.9,0.001]
[1754562987076,12.35338643,3804.0,3803.9,0.001]
[1754562987272,11.11198643,3804.0,3803.9,0.001]
[1754562987474,12.35338643,3804.0,3803.9,0.001]
[1754562987855,10.68198643,3804.0,3803.9,0.001]
[1754562989779,5.55498643,3804.0,3803.9,0.001]
[1754562989980,5.55498643,3804.0,3803.9,1.6013]
[1754562989981,0.99,3804.0,3803.9,1.6013]
[1754562990313,7.20281177,3804.0,3803.9,1.6013]
[1754562990479,7.20281177,3804.0,3803.9,1.1727]
[1754562990638,7.20281177,3804.0,3803.9,0.001]
[1754562991146,8.18596071,3804.0,3803.9,0.001]
[1754562991547,8.18596071,3804.0,3803.9,1.1727]
[1754562991751,4.572,3804.0,3803.9,1.6013]
[1754562992043,2.628646,3804.3,3803.9,1.6013]
[1754562992259,4.572,3804.2,3804.0,1.6003]
[1754562992462,4.572,3804.1,3803.9,0.001]
[1754562992677,2.62833053,3804.7,3803.9,0.001]
[1754562992853,4.571,3804.6,3803.9,0.001]
[1754562993191,2.62852075,3804.5,3804.0,1.6003]
[1754562993479,4.571,3804.4,3804.1,1.6003]
[1754562993684,4.571,3804.4,3804.2,1.6003]
[1754562993849,4.571,3804.4,3804.3,1.6003]
[1754562994053,4.571,3804.4,3804.3,1.1717]
[1754562994054,7.19953538,3804.4,3804.3,1.1717]
[1754562994253,7.19953538,3804.4,3803.9,0.001]
[1754562994254,4.571,3804.4,3803.9,0.001]
[1754562994562,4.571,3804.4,3804.0,1.6003]
[1754562994763,4.571,3804.4,3803.9,0.001]
[1754562994968,2.62864952,3804.3,3804.1,1.6003]
[1754562995177,7.19767357,3804.2,3804.1,0.4286]
[1754562995359,4.569,3804.2,3803.9,0.001]
[1754562995559,2.62881177,3804.0,3803.9,0.001]
[1754562995859,7.19781177,3804.0,3803.9,0.001]
[1754562996088,7.32901177,3804.0,3803.9,0.001]
[1754562996256,8.31901177,3804.0,3803.9,0.001]
[1754562997288,11.31901177,3804.0,3803.9,0.001]
[1754562997475,16.11469681,3804.0,3803.9,0.001]
[1754562998251,30.61469681,3804.0,3803.9,0.001]
[1754562998564,23.82429681,3804.0,3803.9,0.001]
[1754562998777,2.62894999,3803.8,3803.7,1e-08]
[1754562998966,22.08321438,3803.8,3803.7,1e-08]
[1754562999162,39.37581438,3803.8,3803.7,1e-08]
[1754562999390,3.17915735,3803.5,3803.4,1e-08]
[1754562999593,6.31035735,3803.5,3803.4,1e-08]
[1754562999791,10.00923663,3803.5,3803.4,1e-08]
[1754562999967,19.1962,3803.5,3803.4,1.60030001]
[1754563000173,21.82535735,3803.5,3803.4,1.17170001]
[1754563000476,21.82535735,3803.5,3803.4,1e-08]
[1754563000681,9.86979716,3803.5,3803.4,1e-08]
[1754563000853,7.32535735,3803.5,3803.4,1e-08]
[1754563001253,9.98675735,3803.5,3803.4,1e-08]
[1754563001695,10.53675735,3803.5,3803.4,1e-08]
[1754563002059,13.53675735,3803.5,3803.4,1e-08]
[1754563002260,6.75035735,3803.5,3803.4,1e-08]
[1754563002462,14.04683716,3803.5,3803.4,1e-08]
[1754563002660,14.59683716,3803.5,3803.4,1e-08]
[1754563003268,25.93510155,3803.5,3803.4,1e-08]
[1754563004197,25.80390155,3803.5,3803.4,1e-08]
[1754563004791,25.80390155,3803.5,3802.5,0.001]
[1754563004792,2.62977962,3802.6,3802.5,0.001]
[1754563004994,8.70772698,3802.6,3802.5,0.001]
[1754563005798,0.99,3802.6,3802.5,0.001]
[1754563005971,0.99,3802.6,3802.5,1.6013]
[1754563006162,5.55,3802.6,3802.5,1.6013]
[1754563007311,0.99,3802.6,3802.5,1.6013]
[1754563007471,5.55,3802.6,3802.5,1.6013]
[1754563008096,0.99,3802.6,3802.5,1.6013]
[1754563008863,5.549,3802.6,3802.5,1.6013]
[1754563009068,0.99,3802.6,3802.5,0.001]
[1754563009409,5.548,3802.6,3802.5,1.6013]
[1754563009709,0.99,3802.6,3802.5,1.6013]
[1754563009887,2.4709541,3805.0,3802.6,2.62977962]
[1754563010089,2.4709541,3805.0,3803.7,2.62896522]
[1754563010090,0.790056,3804.2,3803.7,2.62896522]
[1754563010290,5.347056,3804.2,3803.8,1.685]
[1754563010478,5.347056,3804.2,3803.9,1.685]
[1754563010678,5.347056,3804.2,3804.0,1.685]
[1754563010898,0.790056,3804.2,3804.1,1.2143]
[1754563011100,0.790056,3804.2,3804.1,1.685]
[1754563012579,0.790056,3804.2,3803.7,2.62895227]
[1754563012580,3.41877786,3804.2,3803.7,1.685]
[1754563012779,4.556,3804.1,3803.8,1.685]
[1754563012980,0.790056,3804.2,3803.9,1.685]
[1754563013314,4.554,3804.1,3804.0,1.685]
[1754563013815,7.18274267,3804.1,3803.4,2.62921495]
[1754563014109,2.6288631,3804.0,3803.6,1.2143]
[1754563014315,4.554,3803.9,3803.6,1.2143]
[1754563014480,0.1312,3803.7,3803.6,1.685]
[1754563014680,0.1312,3803.7,3802.7,0.72310796]
[1754563014885,2.62915559,3803.6,3803.3,1.2143]
[1754563015086,0.1312,3803.4,3803.3,1.2143]
[1754563015286,0.1312,3803.4,3803.3,2.62929561]
[1754563015787,4.552,3803.9,3803.4,2.6291791]
[1754563015988,0.1312,3803.8,3803.4,2.6291791]
[1754563016199,0.1312,3803.8,3803.5,1.685]
[1754563016405,0.1312,3803.8,3803.6,1.685]
[1754563016641,0.1312,3803.8,3803.3,0.1312]
[1754563016642,0.1312,3803.8,3803.7,1.685]
[1754563017194,0.1312,3803.9,3803.7,1.685]
[1754563017394,0.1312,3803.9,3803.8,1.685]
[1754563019822,2.76008784,3803.9,3803.3,0.1312]
[1754563019981,5.338998,3804.0,3803.1,3.100067]
[1754563019982,2.62900501,3803.8,3803.1,3.100067]
[1754563020184,0.1312,3803.6,3803.2,3.84366239]
[1754563020419,0.1312,3803.6,3803.2,2.62936239]
[1754563020583,0.1312,3803.6,3803.1,0.1312]
[1754563020584,0.1312,3803.6,3803.3,4.31428275]
[1754563020783,5.337063,3803.8,3803.4,1.685]
[1754563020982,0.1312,3803.7,3803.5,1.685]
[1754563021184,0.1312,3803.7,3803.6,1.685]
[1754563023023,2.76022705,3803.7,3803.2,1.685]
[1754563023186,2.62911859,3803.6,3803.3,1.2143]
[1754563023391,2.62911859,3803.6,3803.2,0.4707]
[1754563023593,2.76023983,3803.7,3803.2,1.685]
[1754563023888,0.1312,3803.7,3803.3,1.685]
[1754563024437,0.1312,3803.7,3803.1,0.1312]
[1754563025147,0.1312,3803.2,3803.0,1.2143]
[1754563025503,0.1312,3803.2,3803.1,0.4707]
[1754563025702,0.1312,3803.2,3803.1,4.31443388]
[1754563026154,0.1312,3803.2,3803.1,1.685]
[1754563026356,0.79004,3804.0,3803.1,0.4707]
[1754563026659,13.96837572,3805.1,3803.6,2.62903596]
[1754563026660,4.6742,3803.9,3803.6,2.62903596]
[1754563026955,0.1312,3803.9,3803.7,1.685]
[1754563027250,0.1312,3803.9,3803.8,1.685]
[1754563028928,0.1312,3803.9,3803.3,2.62928433]
[1754563028929,2.62941843,3803.2,3802.5,2.63080193]
[1754563029139,2.62943388,3803.1,3802.5,0.001]
[1754563029553,7.16945749,3803.1,3802.5,0.001]
[1754563029709,7.1693867,3803.2,3802.6,1.685]
[1754563029913,2.62944197,3803.1,3802.6,1.685]
[1754563030242,2.62943388,3803.1,3802.7,1.685]
[1754563030406,7.16836475,3803.2,3802.5,0.001]
[1754563030609,4.9929,3803.2,3802.5,0.001]
[1754563031008,2.62968771,3802.8,3802.5,0.001]
[1754563031257,1.1723,3803.1,3802.5,0.001]
[1754563031404,1.1723,3803.1,3802.5,1.686]
[1754563031405,2.62958487,3802.9,3802.5,1.686]
[1754563031628,3.41955216,3803.3,3802.6,1.685]
[1754563031827,0.790228,3803.3,3803.0,2.62945056]
[1754563032030,0.790228,3803.3,3803.1,1.685]
[1754563032233,0.002,3804.2,3803.4,2.62919876]
[1754563032234,7.1686838,3804.2,3803.4,2.62919876]
[1754563032546,2.62874716,3804.1,3803.5,2.62914807]
[1754563032761,2.62874267,3804.1,3803.4,1.2143]
[1754563032962,3.34569968,3804.0,3803.4,1.2143]
[1754563033333,2.62902472,3803.7,3803.4,1.2143]
[1754563033572,2.62908946,3803.6,3803.4,1.2143]
[1754563033783,2.62902868,3803.7,3803.2,0.4707]
[1754563034142,2.62909272,3803.6,3803.0,1.2143]
[1754563034388,2.62922171,3803.5,3802.8,3.10028858]
[1754563034683,2.62934952,3803.3,3802.7,3.0]
[1754563034858,2.62937881,3803.2,3802.7,3.0]
[1754563035058,2.62937881,3803.2,3802.6,4.2143]
[1754563035430,3.80175547,3803.1,3802.5,0.001]
[1754563035578,2.62961158,3802.9,3802.5,0.001]
[1754563035787,0.52586062,3803.2,3802.5,0.001]
[1754563035947,2.62926813,3803.4,3802.6,1.685]
[1754563036145,2.6294441,3803.1,3802.6,1.685]
[1754563036388,2.62937187,3803.2,3802.6,1.685]
[1754563036586,2.62924938,3803.4,3802.6,1.685]
[1754563036797,2.62785568,3803.4,3802.7,2.62965137]
[1754563037000,4.534,3803.5,3802.7,2.62965137]
[1754563037302,4.534,3803.5,3802.6,1.685]
[1754563037303,8.33948911,3803.5,3802.6,4.31475606]
[1754563037592,2.6293895,3803.2,3802.6,4.31475606]
[1754563037795,3.80158864,3803.4,3802.5,0.001]
[1754563037970,2.62950302,3803.0,3802.5,0.001]
[1754563038289,5.7053,3803.1,3802.5,0.001]
[1754563038789,7.16136239,3803.3,3802.6,1.685]
[1754563038989,3.0,3804.3,3802.5,0.001]
[1754563038990,0.1312,3803.0,3802.7,1.685]
[1754563039292,0.1312,3803.5,3803.1,2.62942863]
[1754563039455,0.1312,3803.5,3802.9,0.1312]
[1754563039792,0.002,3803.4,3803.1,2.62937127]
[1754563039972,0.002,3803.4,3803.2,2.62934472]
[1754563040172,0.002,3803.4,3803.2,4.20384472]
[1754563040366,0.002,3803.4,3803.2,1.5745]
[1754563040571,0.002,3803.4,3803.2,3.06585586]
[1754563040785,0.002,3803.4,3803.3,1.5745]
[1754563041186,0.002,3803.4,3803.3,4.33499561]
[1754563041697,0.002,3803.4,3803.2,2.62935302]
[1754563041991,0.002,3803.4,3803.2,2.76055302]
[1754563042192,0.002,3803.4,3803.1,1.5745]
[1754563042494,0.002,3803.4,3803.1,4.20391034]
[1754563042692,0.002,3803.4,3803.2,1.5745]
[1754563042862,0.002,3803.4,3803.1,2.62943388]
[1754563043265,0.002,3803.4,3803.1,1.5745]
[1754563043490,0.002,3803.4,3803.1,4.20390618]
[1754563043891,0.002,3803.4,3803.1,4.20391567]